[Event "The Schackveckan 2023: IM-turnering"]
[Site "Goteborgs schackcentrum, Vegagatan 20, Gothenburg, Sweden"]
[Date "2023.08.05"]
[Round "1.1"]
[White "Sorensen, Hampus"]
[Black "Hector, Jonny"]
[Result "1-0"]
[TimeControl "90 minutes for 40 moves + 30 minutes for the rest of the game + 30 seconds per move from move one."]
[WhiteTitle "IM"]
[BlackTitle "GM"]
[WhiteFideId "8703884"]
[BlackFideId "1700090"]
[WhiteElo "2475"]
[BlackElo "2466"]

1. d4 {[%clk 01:30:42]} {[%emt 00:00:17]} d5 {[%clk 01:30:55]} {[%emt
00:00:04]} 2. Bf4 {[%clk 01:30:45]} {[%emt 00:00:29]} c5 {[%clk 01:31:02]}
{[%emt 00:00:22]} 3. e3 {[%clk 01:31:01]} {[%emt 00:00:15]} Nc6 {[%clk
01:31:13]} {[%emt 00:00:18]} 4. Nf3 {[%clk 01:31:06]} {[%emt 00:00:26]} Nf6
{[%clk 01:31:00]} {[%emt 00:00:43]} 5. Nbd2 {[%clk 01:31:24]} {[%emt 00:00:12]}
Bg4 {[%clk 01:28:12]} {[%emt 00:03:16]} 6. h3 {[%clk 01:30:34]} {[%emt
00:01:21]} Bh5 {[%clk 01:27:01]} {[%emt 00:01:41]} 7. g4 {[%clk 01:24:55]}
{[%emt 00:06:10]} Bg6 {[%clk 01:27:16]} {[%emt 00:00:14]} 8. Bb5 {[%clk
01:25:13]} {[%emt 00:00:13]} e6 {[%clk 01:12:12]} {[%emt 00:15:33]} 9. Ne5
{[%clk 01:19:41]} {[%emt 00:06:02]} Qb6 {[%clk 01:11:39]} {[%emt 00:01:02]} 10.
c4 {[%clk 01:10:46]} {[%emt 00:09:26]} cxd4 {[%clk 00:57:05]} {[%emt 00:15:04]}
11. Qa4 {[%clk 00:55:34]} {[%emt 00:15:42]} Rc8 {[%clk 00:43:08]} {[%emt
00:14:27]} 12. exd4 {[%clk 00:49:02]} {[%emt 00:07:03]} a6 {[%clk 00:38:07]}
{[%emt 00:05:30]} 13. Bxc6+ {[%clk 00:48:02]} {[%emt 00:01:31]} bxc6 {[%clk
00:38:29]} {[%emt 00:00:06]} 14. c5 {[%clk 00:46:47]} {[%emt 00:01:46]} Qb7
{[%clk 00:36:24]} {[%emt 00:02:34]} 15. Qb3 {[%clk 00:43:22]} {[%emt 00:03:56]}
Qa7 {[%clk 00:29:20]} {[%emt 00:07:33]} 16. h4 {[%clk 00:41:51]} {[%emt
00:02:03]} h6 {[%clk 00:24:04]} {[%emt 00:05:44]} 17. Nxg6 {[%clk 00:38:41]}
{[%emt 00:03:41]} fxg6 {[%clk 00:24:31]} {[%emt 00:00:03]} 18. Qd3 {[%clk
00:37:28]} {[%emt 00:01:43]} Kf7 {[%clk 00:24:11]} {[%emt 00:00:50]} 19. Nf3
{[%clk 00:21:01]} {[%emt 00:16:57]} Nxg4 {[%clk 00:23:11]} {[%emt 00:01:30]} 20.
Rg1 {[%clk 00:20:04]} {[%emt 00:01:27]} h5 {[%clk 00:23:17]} {[%emt 00:00:23]}
21. Rxg4 {[%clk 00:19:50]} {[%emt 00:00:45]} hxg4 {[%clk 00:23:42]} {[%emt
00:00:03]} 22. Ne5+ {[%clk 00:20:15]} {[%emt 00:00:07]} Kg8 {[%clk 00:23:08]}
{[%emt 00:01:03]} 23. Bg5 {[%clk 00:18:46]} {[%emt 00:02:00]} Be7 {[%clk
00:13:09]} {[%emt 00:10:28]} 24. Qxg6 {[%clk 00:10:18]} {[%emt 00:09:00]} Bf6
{[%clk 00:13:25]} {[%emt 00:00:13]} 25. Bxf6 {[%clk 00:03:37]} {[%emt
00:07:11]} Rh6 {[%clk 00:13:47]} {[%emt 00:00:08]} 26. Nxc6 {[%clk 00:03:29]}
{[%emt 00:00:39]} Rxg6 {[%clk 00:11:19]} {[%emt 00:02:56]} 27. Nxa7 {[%clk
00:03:58]} {[%emt 00:00:03]} Rc7 {[%clk 00:11:28]} {[%emt 00:00:20]} 28. Be5
{[%clk 00:03:31]} {[%emt 00:00:58]} Rxa7 {[%clk 00:11:47]} {[%emt 00:00:10]} 29.
c6 {[%clk 00:03:22]} {[%emt 00:00:39]} Ra8 {[%clk 00:10:05]} {[%emt 00:02:12]}
30. Rc1 {[%clk 00:03:32]} {[%emt 00:00:20]} Rh6 {[%clk 00:09:35]} {[%emt
00:00:59]} 31. c7 {[%clk 00:03:57]} {[%emt 00:00:07]} Rc8 {[%clk 00:09:58]}
{[%emt 00:00:06]} 32. Rc6 {[%clk 00:02:47]} {[%emt 00:01:40]} Kf7 {[%clk
00:08:58]} {[%emt 00:01:28]} 33. Rxa6 {[%clk 00:03:02]} {[%emt 00:00:17]} Rxh4
{[%clk 00:08:18]} {[%emt 00:01:10]} 34. Kd2 {[%clk 00:03:23]} {[%emt 00:00:09]}
Ke7 {[%emt 00:08:16]} 35. b4 {[%clk 00:02:20]} Kd7 {[%clk 00:02:27]} {[%emt
00:00:07]} 36. b5 {[%clk 00:01:38]} {[%emt 00:01:13]} Rxc7 {[%clk 00:02:37]}
{[%emt 00:00:20]} 37. Bxc7 {[%clk 00:02:03]} {[%emt 00:00:05]} Kxc7 {[%clk
00:03:02]} {[%emt 00:00:05]} 38. Rxe6 {[%clk 00:01:04]} {[%emt 00:01:30]} g3
{[%clk 00:02:39]} {[%emt 00:00:52]} 39. fxg3 {[%clk 00:01:32]} {[%emt
00:00:03]} Rxd4+ {[%clk 00:02:55]} {[%emt 00:00:13]} 40. Kc2 {[%clk 00:01:28]}
{[%emt 00:00:34]} Rg4 {[%clk 00:03:05]} {[%emt 00:00:19]} 41. Kb3 {[%clk
00:07:48]} {[%emt 00:24:11]} Rxg3+ {[%clk 00:32:02]} {[%emt 00:01:33]} 42. Kb4
{[%clk 00:08:14]} {[%emt 00:00:05]} d4 {[%clk 00:27:15]} {[%emt 00:05:15]} 43.
Rc6+ {[%clk 00:07:36]} {[%emt 00:01:09]} Kb7 {[%clk 00:24:31]} {[%emt
00:03:13]} 44. Rd6 {[%clk 00:07:45]} {[%emt 00:00:23]} d3 {[%clk 00:22:43]}
{[%emt 00:02:16]} 45. a4 {[%clk 00:07:42]} {[%emt 00:00:34]} Rg4+ {[%clk
00:08:56]} {[%emt 00:14:17]} 46. Ka5 {[%clk 00:08:01]} {[%emt 00:00:11]} Rg3
{[%clk 00:08:54]} {[%emt 00:00:31]} 47. Rd7+ {[%clk 00:07:59]} {[%emt
00:00:33]} Kc8 {[%clk 00:09:09]} {[%emt 00:00:15]} 48. Rd5 {[%clk 00:04:27]}
{[%emt 00:04:03]} Kb7 {[%clk 00:09:19]} {[%emt 00:00:19]} 49. Rd7+ {[%clk
00:01:21]} {[%emt 00:03:37]} Kc8 {[%clk 00:09:44]} {[%emt 00:00:04]} 50. Rd4
{[%clk 00:01:22]} {[%emt 00:00:30]} Kb7 {[%clk 00:08:13]} {[%emt 00:02:00]} 51.
Kb4 {[%clk 00:01:48]} {[%emt 00:00:04]} g5 {[%clk 00:02:59]} {[%emt 00:05:43]}
52. a5 {[%clk 00:02:14]} {[%emt 00:00:06]} Rh3 {[%clk 00:01:34]} {[%emt
00:01:53]} 53. a6+ {[%clk 00:02:00]} {[%emt 00:00:45]} Kb6 {[%clk 00:00:39]}
{[%emt 00:01:26]} 54. Rd6+ {[%clk 00:01:24]} {[%emt 00:01:06]} Kc7 {[%clk
00:01:05]} {[%emt 00:00:03]} 55. Kc5 {[%clk 00:00:51]} {[%emt 00:01:03]} d2
{[%clk 00:00:47]} {[%emt 00:00:47]} 56. b6+ {[%clk 00:00:46]} {[%emt 00:00:36]}
Kc8 {[%clk 00:01:13]} {[%emt 00:00:04]} 57. Rxd2 {[%clk 00:00:40]} {[%emt
00:00:36]} g4 {[%clk 00:00:47]} {[%emt 00:00:55]} 58. b7+ {[%clk 00:00:45]}
{[%emt 00:00:27]} Kc7 {[%clk 00:01:13]} {[%emt 00:00:03]} 59. Rd7+ {[%clk
00:00:53]} {[%emt 00:00:22]} 1-0

[Event "The Schackveckan 2023: IM-turnering"]
[Site "Goteborgs schackcentrum, Vegagatan 20, Gothenburg, Sweden"]
[Date "2023.08.05"]
[Round "1.2"]
[White "Berggren Torell, Harald"]
[Black "Kistrup, Nicolai"]
[Result "0-1"]
[TimeControl "90 minutes for 40 moves + 30 minutes for the rest of the game + 30 seconds per move from move one."]
[BlackTitle "FM"]
[WhiteFideId "1714031"]
[BlackFideId "1444816"]
[WhiteElo "2061"]
[BlackElo "2339"]

1. e4 {[%clk 01:30:57]} {[%emt 00:00:03]} c5 {[%clk 01:30:56]} {[%emt
00:00:05]} 2. Nc3 {[%clk 01:31:19]} {[%emt 00:00:07]} Nc6 {[%clk 01:29:52]}
{[%emt 00:01:34]} 3. Nf3 {[%clk 01:31:13]} {[%emt 00:00:36]} d6 {[%clk
01:25:58]} {[%emt 00:04:25]} 4. g3 {[%clk 01:30:21]} {[%emt 00:01:22]} g6
{[%clk 01:25:10]} {[%emt 00:01:17]} 5. Bg2 {[%clk 01:29:06]} {[%emt 00:01:44]}
Bg7 {[%clk 01:25:30]} {[%emt 00:00:12]} 6. O-O {[%clk 01:29:18]} {[%emt
00:00:18]} e6 {[%clk 01:17:34]} {[%emt 00:08:25]} 7. d3 {[%clk 01:26:11]}
{[%emt 00:03:36]} Nge7 {[%clk 01:17:47]} {[%emt 00:00:18]} 8. a4 {[%clk
01:20:31]} {[%emt 00:06:11]} O-O {[%clk 01:13:15]} {[%emt 00:05:01]} 9. Bg5
{[%clk 01:17:39]} {[%emt 00:03:21]} h6 {[%clk 01:07:46]} {[%emt 00:06:00]} 10.
Bd2 {[%clk 01:17:30]} {[%emt 00:00:40]} Kh7 {[%clk 01:02:00]} {[%emt 00:06:16]}
11. Qe2 {[%clk 01:09:20]} {[%emt 00:08:39]} e5 {[%clk 00:52:43]} {[%emt
00:09:47]} 12. Nd5 {[%clk 01:02:03]} {[%emt 00:07:46]} Nxd5 {[%clk 00:42:31]}
{[%emt 00:10:42]} 13. exd5 {[%clk 01:02:24]} {[%emt 00:00:10]} Ne7 {[%clk
00:42:04]} {[%emt 00:00:57]} 14. Ne1 {[%clk 01:02:25]} {[%emt 00:00:29]} f5
{[%clk 00:41:19]} {[%emt 00:01:15]} 15. c3 {[%clk 00:59:41]} {[%emt 00:03:14]}
f4 {[%clk 00:37:27]} {[%emt 00:04:21]} 16. g4 {[%clk 00:43:19]} {[%emt
00:16:53]} Ng8 {[%clk 00:32:36]} {[%emt 00:05:21]} 17. Be4 {[%clk 00:39:56]}
{[%emt 00:03:52]} Qh4 {[%clk 00:27:18]} {[%emt 00:05:48]} 18. f3 {[%clk
00:39:02]} {[%emt 00:01:25]} Nf6 {[%clk 00:21:48]} {[%emt 00:06:00]} 19. Qf2
{[%clk 00:37:49]} {[%emt 00:01:43]} Qxf2+ {[%clk 00:17:42]} {[%emt 00:04:36]}
20. Kxf2 {[%clk 00:37:26]} {[%emt 00:00:52]} c4 {[%clk 00:15:03]} {[%emt
00:03:10]} 21. h3 {[%clk 00:25:31]} {[%emt 00:12:26]} h5 {[%clk 00:13:49]}
{[%emt 00:01:43]} 22. Rg1 {[%clk 00:20:23]} {[%emt 00:05:37]} Nxe4+ {[%clk
00:11:12]} {[%emt 00:03:08]} 23. dxe4 {[%clk 00:20:06]} {[%emt 00:00:46]} Bf6
{[%clk 00:08:42]} {[%emt 00:03:00]} 24. Ke2 {[%clk 00:18:28]} {[%emt 00:02:08]}
Bd8 {[%clk 00:06:09]} {[%emt 00:03:03]} 25. Nc2 {[%clk 00:17:04]} {[%emt
00:01:55]} Bb6 {[%clk 00:04:30]} {[%emt 00:02:09]} 26. Rh1 {[%clk 00:16:38]}
{[%emt 00:00:56]} Bd7 {[%clk 00:04:23]} {[%emt 00:00:36]} 27. Be1 {[%clk
00:16:28]} {[%emt 00:00:40]} Rfc8 {[%clk 00:03:01]} {[%emt 00:01:52]} 28. a5
{[%clk 00:15:01]} {[%emt 00:01:58]} Bc5 {[%clk 00:02:00]} {[%emt 00:01:31]} 29.
Bf2 {[%clk 00:13:00]} {[%emt 00:02:30]} Bxf2 {[%clk 00:02:02]} {[%emt
00:00:29]} 30. Kxf2 {[%clk 00:13:28]} {[%emt 00:00:02]} Rc5 {[%clk 00:01:44]}
{[%emt 00:00:48]} 31. a6 {[%clk 00:11:31]} {[%emt 00:02:27]} b6 {[%clk
00:01:13]} {[%emt 00:01:01]} 32. Nb4 {[%clk 00:07:11]} {[%emt 00:04:50]} h4
{[%clk 00:01:14]} {[%emt 00:00:30]} 33. Ra3 {[%clk 00:05:52]} {[%emt 00:01:48]}
Rac8 {[%clk 00:01:16]} {[%emt 00:00:28]} 34. Ke2 {[%clk 00:05:16]} {[%emt
00:01:06]} Kg7 {[%clk 00:01:36]} {[%emt 00:00:10]} 35. Rha1 {[%clk 00:04:35]}
{[%emt 00:01:11]} Kf7 {[%clk 00:01:49]} {[%emt 00:00:17]} 36. Kd2 {[%clk
00:04:51]} {[%emt 00:00:13]} Ke7 {[%clk 00:01:59]} {[%emt 00:00:20]} 37. Nc2
{[%clk 00:01:35]} {[%emt 00:03:47]} Rb5 {[%clk 00:01:47]} {[%emt 00:00:42]} 38.
Nb4 {[%clk 00:01:37]} {[%emt 00:00:28]} Rcc5 {[%clk 00:01:40]} {[%emt
00:00:37]} 39. Kc2 {[%clk 00:01:38]} {[%emt 00:00:29]} Kd8 {[%clk 00:01:31]}
{[%emt 00:00:39]} 40. R1a2 {[%clk 00:00:48]} {[%emt 00:01:20]} Kc7 {[%clk
00:01:01]} {[%emt 00:00:59]} 41. b3 {[%clk 00:26:31]} {[%emt 00:04:48]} Ra5
{[%clk 00:18:09]} {[%emt 00:13:22]} 42. bxc4 {[%clk 00:24:16]} {[%emt
00:02:44]} Rxa3 {[%clk 00:17:32]} {[%emt 00:01:08]} 43. Rxa3 {[%clk 00:23:47]}
{[%emt 00:01:00]} Rxc4 {[%clk 00:17:02]} {[%emt 00:00:58]} 44. Kb3 {[%clk
00:21:16]} {[%emt 00:03:01]} Rc5 {[%clk 00:16:41]} {[%emt 00:00:52]} 45. Nd3
{[%clk 00:18:12]} {[%emt 00:03:34]} Rb5+ {[%clk 00:14:31]} {[%emt 00:02:40]} 46.
Nb4 {[%clk 00:18:04]} {[%emt 00:00:38]} Ra5 {[%clk 00:10:42]} {[%emt 00:04:19]}
47. Nd3 {[%clk 00:13:57]} {[%emt 00:04:37]} Rxa3+ {[%clk 00:09:46]} {[%emt
00:01:26]} 48. Kxa3 {[%clk 00:14:26]} Bb5 {[%clk 00:10:03]} {[%emt 00:00:13]}
49. Nb4 {[%clk 00:14:38]} {[%emt 00:00:18]} Bf1 {[%clk 00:09:18]} {[%emt
00:01:14]} 0-1

[Event "The Schackveckan 2023: IM-turnering"]
[Site "Goteborgs schackcentrum, Vegagatan 20, Gothenburg, Sweden"]
[Date "2023.08.05"]
[Round "1.3"]
[White "Tryggestad, Andreas Garberg"]
[Black "Olsson, William"]
[Result "1-0"]
[TimeControl "90 minutes for 40 moves + 30 minutes for the rest of the game + 30 seconds per move from move one."]
[WhiteTitle "FM"]
[BlackTitle "FM"]
[WhiteFideId "1513338"]
[BlackFideId "1741721"]
[WhiteElo "2233"]
[BlackElo "2400"]

1. e4 {[%clk 01:30:57]} {[%emt 00:00:02]} c5 {[%clk 01:30:52]} {[%emt
00:00:08]} 2. Nf3 {[%clk 01:31:22]} {[%emt 00:00:06]} d6 {[%clk 01:31:18]}
{[%emt 00:00:04]} 3. d4 {[%clk 01:31:44]} {[%emt 00:00:08]} cxd4 {[%clk
01:31:45]} {[%emt 00:00:04]} 4. Nxd4 {[%clk 01:32:08]} {[%emt 00:00:06]} Nf6
{[%clk 01:32:11]} {[%emt 00:00:03]} 5. Nc3 {[%clk 01:32:30]} {[%emt 00:00:06]}
g6 {[%clk 01:32:38]} {[%emt 00:00:05]} 6. Be3 {[%clk 01:32:50]} {[%emt
00:00:10]} Bg7 {[%clk 01:33:05]} {[%emt 00:00:03]} 7. f3 {[%clk 01:33:07]}
{[%emt 00:00:13]} O-O {[%clk 01:33:31]} {[%emt 00:00:05]} 8. Qd2 {[%clk
01:33:30]} {[%emt 00:00:06]} Nc6 {[%clk 01:33:58]} {[%emt 00:00:03]} 9. O-O-O
{[%clk 01:33:46]} {[%emt 00:00:15]} d5 {[%clk 01:34:25]} {[%emt 00:00:03]} 10.
exd5 {[%clk 01:33:56]} {[%emt 00:00:19]} Nxd5 {[%clk 01:34:50]} {[%emt
00:00:05]} 11. Nxc6 {[%clk 01:34:20]} {[%emt 00:00:07]} bxc6 {[%clk 01:35:16]}
{[%emt 00:00:03]} 12. Bd4 {[%clk 01:34:43]} {[%emt 00:00:06]} e5 {[%clk
01:35:43]} {[%emt 00:00:04]} 13. Bc5 {[%clk 01:35:09]} {[%emt 00:00:04]} Be6
{[%clk 01:36:11]} {[%emt 00:00:02]} 14. Ne4 {[%clk 01:35:15]} {[%emt 00:00:24]}
Re8 {[%clk 01:36:36]} {[%emt 00:00:04]} 15. h4 {[%clk 01:35:26]} {[%emt
00:00:20]} h6 {[%clk 01:36:58]} {[%emt 00:00:09]} 16. h5 {[%clk 01:35:33]}
{[%emt 00:00:23]} g5 {[%clk 01:26:55]} {[%emt 00:10:33]} 17. g4 {[%clk
01:34:57]} {[%emt 00:01:06]} Qc7 {[%clk 01:25:15]} {[%emt 00:02:09]} 18. Bc4
{[%clk 01:33:45]} {[%emt 00:01:41]} Nf4 {[%clk 01:24:44]} {[%emt 00:01:01]} 19.
Qc3 {[%clk 01:19:19]} {[%emt 00:14:57]} Bd5 {[%clk 01:21:40]} {[%emt 00:03:34]}
20. Rhe1 {[%clk 01:07:11]} {[%emt 00:12:38]} Rad8 {[%clk 01:21:14]} {[%emt
00:00:54]} 21. Bb4 {[%clk 00:52:26]} {[%emt 00:15:17]} Qb8 {[%clk 01:15:21]}
{[%emt 00:06:23]} 22. a3 {[%clk 00:48:34]} {[%emt 00:04:23]} Ne6 {[%clk
01:12:34]} {[%emt 00:03:16]} 23. Qd3 {[%clk 00:38:39]} {[%emt 00:10:25]} Qc7
{[%clk 01:00:47]} {[%emt 00:12:16]} 24. Qc3 {[%clk 00:36:49]} {[%emt 00:02:21]}
Qb8 {[%clk 00:58:24]} {[%emt 00:02:53]} 25. Qd3 {[%clk 00:37:12]} {[%emt
00:00:06]} Nd4 {[%clk 00:53:19]} {[%emt 00:05:34]} 26. Rf1 {[%clk 00:25:41]}
{[%emt 00:12:03]} Qc7 {[%clk 00:46:59]} {[%emt 00:06:49]} 27. Qc3 {[%clk
00:25:58]} {[%emt 00:00:14]} Qb8 {[%clk 00:41:13]} {[%emt 00:06:16]} 28. Qd3
{[%clk 00:26:17]} {[%emt 00:00:10]} Qb6 {[%clk 00:41:28]} {[%emt 00:00:15]} 29.
Qc3 {[%clk 00:22:41]} {[%emt 00:04:06]} Rb8 {[%clk 00:36:16]} {[%emt 00:05:43]}
30. Bd3 {[%clk 00:20:39]} {[%emt 00:02:32]} Qd8 {[%clk 00:30:37]} {[%emt
00:06:10]} 31. Kb1 {[%clk 00:19:43]} {[%emt 00:01:25]} Kh8 {[%clk 00:26:58]}
{[%emt 00:04:09]} 32. Rd2 {[%clk 00:19:01]} {[%emt 00:01:12]} Qd7 {[%clk
00:25:27]} {[%emt 00:02:01]} 33. Nc5 {[%clk 00:17:54]} {[%emt 00:01:37]} Qc8
{[%clk 00:24:05]} {[%emt 00:01:51]} 34. Be4 {[%clk 00:15:52]} {[%emt 00:02:32]}
Nb5 {[%clk 00:07:24]} {[%emt 00:17:11]} 35. Qe3 {[%clk 00:16:02]} {[%emt
00:00:20]} a5 {[%clk 00:06:36]} {[%emt 00:01:19]} 36. Bxa5 {[%clk 00:06:05]}
{[%emt 00:10:27]} Nd6 {[%clk 00:07:00]} {[%emt 00:00:06]} 37. Bf5 {[%clk
00:05:16]} {[%emt 00:01:19]} Nxf5 {[%clk 00:06:02]} {[%emt 00:01:27]} 38. gxf5
{[%clk 00:05:45]} {[%emt 00:00:02]} Qxf5 {[%clk 00:06:06]} {[%emt 00:00:26]} 39.
Bc3 {[%clk 00:05:36]} {[%emt 00:00:39]} g4 {[%clk 00:04:37]} {[%emt 00:01:59]}
40. Ne4 {[%clk 00:04:50]} {[%emt 00:01:17]} gxf3 {[%clk 00:00:39]} {[%emt
00:04:27]} 41. Nd6 {[%clk 00:00:35]} {[%emt 00:04:45]} Qh3 {[%clk 00:28:16]}
{[%emt 00:02:53]} 42. Rdf2 {[%clk 00:28:37]} {[%emt 00:02:28]} Re7 {[%clk
00:25:26]} {[%emt 00:03:19]} 43. Ne4 {[%clk 00:27:41]} {[%emt 00:01:28]} Qh4
{[%clk 00:23:36]} {[%emt 00:02:17]} 44. Nd2 {[%clk 00:27:38]} {[%emt 00:00:34]}
Qxh5 {[%clk 00:12:54]} {[%emt 00:11:11]} 45. Nxf3 {[%clk 00:28:01]} {[%emt
00:00:09]} Qh3 {[%clk 00:11:16]} {[%emt 00:02:07]} 46. Rg1 {[%clk 00:23:15]}
{[%emt 00:05:16]} f6 {[%clk 00:09:57]} {[%emt 00:01:50]} 47. Rff1 {[%clk
00:14:32]} {[%emt 00:09:13]} Kg8 {[%clk 00:06:09]} {[%emt 00:04:17]} 48. Rh1
{[%clk 00:14:20]} {[%emt 00:00:43]} Qg4 {[%clk 00:06:20]} {[%emt 00:00:19]} 49.
Rh4 {[%clk 00:11:28]} {[%emt 00:03:21]} Qg2 {[%clk 00:05:58]} {[%emt 00:00:48]}
50. Nd2 {[%clk 00:11:49]} {[%emt 00:00:13]} Qg5 {[%clk 00:06:08]} {[%emt
00:00:21]} 51. Qe1 {[%clk 00:11:28]} {[%emt 00:00:51]} f5 {[%clk 00:03:19]}
{[%emt 00:03:19]} 52. Nc4 {[%clk 00:08:22]} {[%emt 00:03:36]} Kh7 {[%clk
00:02:03]} {[%emt 00:01:45]} 53. Ne3 {[%clk 00:05:45]} {[%emt 00:03:08]} f4
{[%clk 00:01:43]} {[%emt 00:00:50]} 54. Rg1 {[%clk 00:04:40]} {[%emt 00:01:35]}
Qf6 {[%clk 00:02:06]} {[%emt 00:00:06]} 55. Ng4 {[%clk 00:04:44]} {[%emt
00:00:26]} Qf5 {[%clk 00:02:30]} {[%emt 00:00:07]} 56. Nxh6 {[%clk 00:04:23]}
{[%emt 00:00:51]} Bxh6 {[%clk 00:02:10]} {[%emt 00:00:51]} 57. Rxh6+ {[%clk
00:04:44]} {[%emt 00:00:08]} Kxh6 {[%clk 00:02:29]} {[%emt 00:00:11]} 58. Qh4+
{[%clk 00:05:07]} {[%emt 00:00:06]} Qh5 {[%clk 00:02:38]} {[%emt 00:00:21]} 59.
Qf6+ {[%clk 00:03:59]} {[%emt 00:01:39]} Kh7 {[%clk 00:03:00]} {[%emt
00:00:07]} 60. Qxe7+ {[%clk 00:04:27]} {[%emt 00:00:02]} Bf7 {[%clk 00:03:21]}
{[%emt 00:00:09]} 61. Qxe5 {[%clk 00:00:33]} {[%emt 00:04:25]} Rg8 {[%clk
00:03:41]} {[%emt 00:00:10]} 62. Rg7+ {[%clk 00:00:45]} {[%emt 00:00:18]} Kh6
{[%clk 00:04:02]} {[%emt 00:00:07]} 63. Qxf4+ {[%emt 00:00:31]} 1-0

[Event "The Schackveckan 2023: IM-turnering"]
[Site "Goteborgs schackcentrum, Vegagatan 20, Gothenburg, Sweden"]
[Date "2023.08.05"]
[Round "1.4"]
[White "Karlsson, Stefan"]
[Black "Ustianovich, Nazar"]
[Result "1/2-1/2"]
[TimeControl "90 minutes for 40 moves + 30 minutes for the rest of the game + 30 seconds per move from move one."]
[BlackTitle "FM"]
[WhiteFideId "1771183"]
[BlackFideId "14109778"]
[WhiteElo "1925"]
[BlackElo "2314"]

1. e4 {[%clk 01:30:53]} {[%emt 00:00:06]} c5 {[%clk 01:30:17]} {[%emt
00:00:43]} 2. Nf3 {[%clk 01:31:15]} {[%emt 00:00:08]} g6 {[%clk 01:30:38]}
{[%emt 00:00:10]} 3. c3 {[%clk 01:31:26]} {[%emt 00:00:19]} Nf6 {[%clk
01:31:04]} {[%emt 00:00:04]} 4. e5 {[%clk 01:31:44]} {[%emt 00:00:12]} Nd5
{[%clk 01:31:28]} {[%emt 00:00:07]} 5. d4 {[%clk 01:32:07]} {[%emt 00:00:05]}
cxd4 {[%clk 01:31:54]} {[%emt 00:00:05]} 6. Qxd4 {[%clk 01:32:31]} {[%emt
00:00:06]} Nb6 {[%clk 01:30:45]} {[%emt 00:01:39]} 7. Qh4 {[%clk 01:29:35]}
{[%emt 00:03:25]} h6 {[%clk 01:28:19]} {[%emt 00:02:56]} 8. a4 {[%clk
01:24:43]} {[%emt 00:05:22]} e6 {[%clk 01:13:17]} {[%emt 00:15:33]} 9. Bg5
{[%clk 00:59:33]} {[%emt 00:25:39]} Be7 {[%clk 01:12:55]} {[%emt 00:00:52]} 10.
Bxe7 {[%clk 00:59:53]} {[%emt 00:00:11]} Qxe7 {[%clk 01:13:24]} {[%emt
00:00:01]} 11. Qxe7+ {[%clk 00:58:57]} {[%emt 00:01:26]} Kxe7 {[%clk 01:13:53]}
{[%emt 00:00:01]} 12. Nbd2 {[%clk 00:43:59]} {[%emt 00:15:27]} d5 {[%clk
01:12:12]} {[%emt 00:02:12]} 13. Nd4 {[%clk 00:35:16]} {[%emt 00:09:12]} Nc6
{[%clk 01:02:38]} {[%emt 00:10:04]} 14. f4 {[%clk 00:33:13]} {[%emt 00:02:32]}
Nxd4 {[%clk 00:58:26]} {[%emt 00:04:41]} 15. cxd4 {[%clk 00:33:40]} {[%emt
00:00:06]} Bd7 {[%clk 00:58:36]} {[%emt 00:00:20]} 16. b3 {[%clk 00:33:26]}
{[%emt 00:00:44]} Rac8 {[%clk 00:55:46]} {[%emt 00:03:20]} 17. Bd3 {[%clk
00:27:22]} {[%emt 00:06:34]} Rc3 {[%clk 00:55:32]} {[%emt 00:00:44]} 18. Ke2
{[%clk 00:27:43]} {[%emt 00:00:09]} Rhc8 {[%clk 00:55:59]} {[%emt 00:00:03]} 19.
g4 {[%clk 00:26:45]} {[%emt 00:01:26]} Rh8 {[%clk 00:45:09]} {[%emt 00:11:21]}
20. Raf1 {[%clk 00:18:36]} {[%emt 00:08:38]} Rcc8 {[%clk 00:33:04]} {[%emt
00:12:36]} 21. f5 {[%clk 00:14:44]} {[%emt 00:04:22]} gxf5 {[%clk 00:33:23]}
{[%emt 00:00:12]} 22. gxf5 {[%clk 00:14:58]} {[%emt 00:00:15]} exf5 {[%clk
00:33:52]} {[%emt 00:00:02]} 23. Bxf5 {[%clk 00:14:14]} {[%emt 00:01:12]} Rhg8
{[%clk 00:32:11]} {[%emt 00:02:10]} 24. Bxd7 {[%clk 00:12:16]} {[%emt
00:02:29]} Nxd7 {[%clk 00:32:40]} {[%emt 00:00:01]} 25. Rf3 {[%clk 00:11:21]}
{[%emt 00:01:25]} Rc2 {[%clk 00:19:26]} {[%emt 00:13:44]} 26. Kd3 {[%clk
00:10:37]} {[%emt 00:01:14]} Rc6 {[%clk 00:16:57]} {[%emt 00:02:59]} 27. Rhf1
{[%clk 00:08:35]} {[%emt 00:02:32]} f6 {[%clk 00:17:23]} {[%emt 00:00:05]} 28.
exf6+ {[%clk 00:08:39]} {[%emt 00:00:26]} Rxf6 {[%clk 00:17:52]} {[%emt
00:00:01]} 29. Rxf6 {[%clk 00:08:02]} {[%emt 00:01:07]} Nxf6 {[%clk 00:18:21]}
{[%emt 00:00:01]} 30. Rf5 {[%clk 00:07:34]} {[%emt 00:00:57]} Rg2 {[%clk
00:11:51]} {[%emt 00:06:59]} 31. Nf1 {[%clk 00:06:21]} {[%emt 00:01:44]} Rb2
{[%clk 00:03:16]} {[%emt 00:09:05]} 32. Nd2 {[%clk 00:06:28]} {[%emt 00:00:24]}
Ke6 {[%emt 00:00:55]} 33. Re5+ {[%clk 00:05:47]} {[%emt 00:01:09]} Kd6 {[%clk
00:03:20]} {[%emt 00:00:02]} 34. Kc3 {[%clk 00:05:53]} {[%emt 00:00:25]} Ra2
{[%clk 00:03:44]} {[%emt 00:00:05]} 35. Rf5 {[%clk 00:04:57]} {[%emt 00:01:26]}
Ke6 {[%clk 00:03:29]} {[%emt 00:00:46]} 36. Re5+ {[%clk 00:05:09]} {[%emt
00:00:17]} Kd6 {[%clk 00:02:21]} {[%emt 00:01:38]} 37. Rf5 {[%clk 00:04:08]}
{[%emt 00:01:31]} Ke6 {[%clk 00:02:05]} {[%emt 00:00:46]} 38. Re5+ {[%clk
00:04:04]} {[%emt 00:00:34]} Kd6 {[%clk 00:02:30]} {[%emt 00:00:06]} 39. Rf5
{[%clk 00:04:02]} {[%emt 00:01:44]} 1/2-1/2